Cogmind - Beta 11.1 @@@ ROGUE MODE // 2022.05.12 @ 17:08:36 Player: the cat Result: Destroyed self with Proton Missile Launcher Performance ------------- Evolutions (3) 1500 Regions Visited (10) 2000 Robots Destroyed (147) 735 Value Destroyed (3931) 3931 Prototype IDs (21) 420 Alien Tech Used (1) 200 Bonus (1289) 1289 TOTAL SCORE: 10075 Bonus ------- High Alert Combat Kills 470 Follower Combat Kills 559 Met Data Miner 300 Friendly Fire -40 Cogmind --------- Core Integrity 0/700 Matter 100/300 Energy 172/290 System Corruption 1% Temperature Warm (139) Movement Core (1000) Ox19 Location -7/Data Miner Parts ------- > --- POWER (1) -------- Improved Deuterium Engine > --- PROPULSION (5) --- (None) > --- UTILITY (5) ------ Improved Heat Sink High-capacity Storage Unit Improved Signal Interpreter Advanced Targeting Computer > --- WEAPON (3) ------- Proton Missile Launcher > --- INVENTORY (20) --- Antimatter Reactor Machine Analyzer Improved Sensor Array Improved Heavy Armor Plating Component Analysis Suite Heavy Particle Cannon Minigun Advanced Assault Cannon Improved Datajack Heavy Flail Fire Trap Fire Trap Peak State ------------ > --- POWER ------------ Antimatter Reactor > --- PROPULSION ------- Improved Treads Improved Treads Armored Huge Wheel > --- UTILITY ---------- Improved Signal Interpreter Hardened Medium Armor Plating Improved Heavy Armor Plating Improved Shield Generator > --- WEAPON ----------- Heavy Beamcaster Heavy Beamcaster Heavy Beamcaster > --- INVENTORY -------- Improved Treads Medium Treads Hardened Medium Armor Plating Heavy Particle Cannon Heavy Flail [Rating: 58] Favorites ----------- Power Improved Deuterium Engine Engine Improved Deuterium Engine Power Core Enhanced Nuclear Core Reactor Antimatter Reactor Propulsion Improved Treads Treads Improved Treads Leg Aluminum Leg Wheel Armored Huge Wheel Hover Unit Aerolev Unit Utility High-capacity Storage Unit Device Improved Sensor Array Storage High-capacity Storage Unit Processor Improved Signal Interpreter Protection Improved Heavy Armor Plating Weapon Heavy Beamcaster Energy Gun Heavy Beamcaster Energy Cannon Heavy Particle Cannon Ballistic Gun Enhanced Autogun Ballistic Cannon Advanced Assault Cannon Launcher Proton Missile Launcher Impact Weapon Heavy Flail Special Melee Weapon Improved Datajack Build | -11 -10 -9 -9 -8 -7 -7 -7 -7 -7 -7 ------- Run | Scr Mat Mat Min Mat Fac Was Fac Low Low Dat Slots Evolved 6 | . . 2 . 2 2 . . . . . Power . | . . . . . . . . . . . Propulsion 2 | . . 1 . 1 . . . . . . Utility 3 | . . 1 . 1 1 . . . . . Weapon 1 | . . . . . 1 . . . . . Parts Attached 155 | . 7 23 6 36 19 18 11 2 12 21 Power 13 | . 2 3 . 3 1 1 1 . . 2 Engine 7 | . 1 3 . . 1 . 1 . . 1 Core 4 | . 1 . . 3 . . . . . . Reactor 2 | . . . . . . 1 . . . 1 Propulsion 33 | . 2 7 . 9 3 6 2 . . 4 Treads 21 | . 1 5 . 8 1 2 1 . . 3 Leg 4 | . . . . . . 3 . . . 1 Wheel 7 | . 1 2 . 1 2 1 . . . . Hover 1 | . . . . . . . 1 . . . Flight . | . . . . . . . . . . . Utility 33 | . 2 3 1 7 5 3 2 1 4 5 Device 14 | . . 1 . 3 2 1 1 1 2 3 Storage 3 | . 1 . . 1 . . 1 . . . Processor 3 | . 1 . . . 1 . . . 1 . Hackware . | . . . . . . . . . . . Protection 13 | . . 2 1 3 2 2 . . 1 2 Artifact . | . . . . . . . . . . . Weapon 76 | . 1 10 5 17 10 8 6 1 8 10 Energy Gun 23 | . . 6 1 8 . 4 2 . . 2 Energy Cannon 6 | . . 1 1 2 1 . . . . 1 Ballistic Gun 22 | . 1 3 1 3 7 1 . 1 3 2 Ballistic Cannon 1 | . . . . . . . 1 . . . Launcher 13 | . . . 2 4 1 2 . . 2 2 Special Weapon . | . . . . . . . . . . . Impact Weapon 10 | . . . . . 1 1 3 . 2 3 Slashing Weapon . | . . . . . . . . . . . Piercing Weapon . | . . . . . . . . . . . Special Melee Weapon 1 | . . . . . . . . . 1 . Unidentified Prototypes 12 | . . 3 . 3 1 2 1 . 1 1 Corrupted Parts 1 | . . . . . . . . . . 1 System Corruption 1 | . . . . . . . . . . 1 Parts Lost 34 | . 2 3 2 8 . 5 . . . 14 Power 5 | . 1 . . 2 . 1 . . . 1 Propulsion 9 | . . 1 . 1 . . . . . 7 Utility 9 | . . . 1 4 . 2 . . . 2 Weapon 11 | . 1 2 1 1 . 2 . . . 4 Highest Loss Streak 14 | . 1 2 1 2 . 5 . . . 14 To Critical Strikes . | . . . . . . . . . . . Average Slot Usage (%) 90 | . 90 97 100 94 98 71 84 84 88 81 Engine 5 | . 7 10 11 . 4 1 6 7 7 6 Core 2 | . 6 . . 8 2 . . . . . Treads 21 | . 8 20 22 32 28 12 15 15 14 13 Wheel 6 | . 8 11 11 3 . 8 7 7 7 4 Device 6 | . . 4 . 8 15 6 7 7 6 4 Storage 8 | . 14 11 11 9 7 1 6 7 7 7 Processor 6 | . 4 11 11 . 7 7 7 7 11 14 Protection 8 | . . 6 11 13 7 8 7 7 7 7 Energy Gun 11 | . 4 8 11 11 . 11 20 15 14 13 Energy Cannon 1 | . . . 5 5 . . . . . . Ballistic Gun 6 | . 23 12 4 . 21 5 . 1 5 2 Naked Turns . | . . . . . . . . . . . Heaviest Build 115 | 11 47 60 64 105 115 115 90 79 79 81 Greatest Support 100 | 20 20 12 12 100 88 44 46 46 28 56 Greatest Overweight (x) 5 | . 3 4 5 5 4 2 3 2 2 2 Average Overweight (x) 1 | . 1 3 4 1 1 1 1 1 2 1 Largest Inventory Capacity 25 | . 20 20 20 25 25 25 20 20 20 20 Average Capacity 19 | . 13 20 20 20 25 10 19 20 20 20 Most Carried 25 | . 12 20 20 25 25 25 19 20 20 20 Average Carried 17 | . 7 16 19 20 24 10 14 19 19 18 Final Capacity 25 | 8 20 20 20 25 25 5 20 20 20 20 Final Carried 25 | 6 12 20 19 25 25 5 19 20 20 13 Class Distribution -------------------- 67% | Mutant 19% | Tank 11% | Skirmisher Dominant Class ---------------- Mutant | -10/Materials Mutant | -9/Materials Mutant | -9/Mines Mutant | -8/Materials Tank | -7/Factory Tank | -7/Waste Skirmisher | -7/Factory Mutant | -7/Lower Caves Skirmisher | -7/Lower Caves Mutant | -7/Data Miner Resources | -11 -10 -9 -9 -8 -7 -7 -7 -7 -7 -7 ----------- Run | Scr Mat Mat Min Mat Fac Was Fac Low Low Dat Matter Collected 2632 | 200 140 464 177 623 308 372 110 32 109 97 Remotely . | . . . . . . . . . . . Salvage Created 5404 | . 497 1050 327 1738 636 523 159 24 265 185 Parts 290 | . 24 73 22 94 48 2 5 . 17 5 Haulers Intercepted 12 | . 1 2 . 6 2 . 1 . . . Recyclers Shooed 5 | . 1 2 . 2 . . . . . . Parts Field Recycled . | . . . . . . . . . . . Retrieved Matter . | . . . . . . . . . . . Parts Self-Destructed 27 | . . . . . . . . 23 4 . Prevented 10 | . . . . . . . . 1 9 . Kills | -11 -10 -9 -9 -8 -7 -7 -7 -7 -7 -7 ------- Run | Scr Mat Mat Min Mat Fac Was Fac Low Low Dat Combat Hostiles Destroyed 94 | . 10 19 14 29 11 2 . 1 6 2 Guns 58 | . 10 18 9 13 7 . . 1 . . Cannons 3 | . . . . 3 . . . . . . AOE 28 | . . . 4 13 4 2 . . 5 . Classes Destroyed 14 | . 3 7 . 1 2 1 . . . . Worker 10 | . 1 2 1 . 5 . 1 . . . Builder 11 | . . 2 . 3 6 . . . . . Tunneler 4 | . . 1 . 3 . . . . . . Hauler 12 | . 1 2 . 6 2 . 1 . . . Recycler 9 | . . 1 . 5 2 . 1 . . . Watcher 7 | . . 3 . 3 . . 1 . . . Swarmer 26 | . . 4 7 8 4 . . . 3 . Grunt 44 | . 10 9 7 10 5 . . . 3 . Duelist 3 | . . 1 . 2 . . . . . . Protector 1 | . . . . 1 . . . . . . Sentry 13 | . . 5 . 8 . . . . . . Hunter 1 | . . . . . 1 . . . . . Programmer 2 | . . . . . 1 . . 1 . . Compactor 2 | . . . . . . 2 . . . . Enhanced Grunt 2 | . . . . . . . . . . 2 Best Kill Streak 15 | . 3 7 4 9 15 2 2 1 6 1 Combat Bots Only 7 | . 3 4 4 7 4 2 . 1 6 1 Max Kills in Single Turn 8 | . 1 2 2 3 8 1 1 1 2 1 Gunslinging 1 | . . 1 1 . . . . . . . Exploded 3 | . . . 2 2 3 1 . . 2 . Melee . | . . . . . . . . . . . Uniques/NPCs Destroyed . | . . . . . . . . . . . Combat | -11 -10 -9 -9 -8 -7 -7 -7 -7 -7 -7 -------- Run | Scr Mat Mat Min Mat Fac Was Fac Low Low Dat Damage Taken 6822 | . 506 689 369 1742 186 579 124 20 213 2394 Core 1009 | . 127 66 7 106 12 173 20 . 13 485 Absorbed by Shields 155 | . . . . . 70 76 9 . . . Core Remaining (%) 77 | 100 49 . 81 80 . . . . . . Volleys Fired 311 | . 49 75 21 94 17 11 3 6 6 29 Largest 3 | . 2 2 2 2 3 3 3 3 3 3 Hottest 243 | . 60 80 124 136 115 75 243 187 187 187 Shots Fired 617 | . 98 142 38 174 43 23 8 15 8 68 Gun 527 | . 98 142 31 114 37 18 8 15 3 61 Cannon 57 | . . . 3 48 2 . . . . 4 Launcher 33 | . . . 4 12 4 5 . . 5 3 Special . | . . . . . . . . . . . Kinetic 273 | . 87 85 14 5 37 18 . 3 1 23 Thermal 264 | . . 36 20 142 2 . 8 12 2 42 Explosive 25 | . . . 4 12 4 5 . . . . Electromagnetic 55 | . 11 21 . 15 . . . . 5 3 Robot Hit Streak 24 | . 16 20 10 10 18 24 1 5 8 13 Robot Miss Streak 7 | . 3 3 3 5 2 3 7 5 . 2 Penetration Max . | . . . . . . . . . . . Secondary Targets 6 | . . 3 3 . . . . . . . Max Gunslinging Chain 1 | . . 1 1 . . . . . . . Shots Hit Robots 428 | . 70 99 26 106 30 19 4 8 9 57 Core Hits 244 | . 32 43 19 77 31 5 4 2 13 18 Critical Kills 1 | . . . 1 . . . . . . . Critical Parts Destroyed 4 | . . 2 . . 1 . 1 . . . Critical Strikes 27 | . . 6 3 9 1 . 1 2 . 5 Burn 22 | . . 4 2 9 . . . 2 . 5 Meltdown 1 | . . . 1 . . . . . . . Destroy 2 | . . 2 . . . . . . . . Smash 2 | . . . . . 1 . 1 . . . Melee Attacks 23 | . . . . . 1 1 7 1 4 9 Impact 22 | . . . . . 1 1 7 1 3 9 Slashing . | . . . . . . . . . . . Piercing . | . . . . . . . . . . . Sneak Attacks 6 | . . . . . 1 . 3 . 1 1 Combat Hostiles . | . . . . . . . . . . . Follow-up Attacks . | . . . . . . . . . . . Damage Inflicted 12300 | . 634 1535 800 3874 1815 1394 296 211 666 1075 Guns 5982 | . 634 1528 384 1561 464 230 92 211 65 813 Cannons 860 | . . . 20 716 53 . . . . 71 Explosions 4945 | . . . 391 1597 1242 1164 . . 483 68 Melee 501 | . . . . . 56 . 204 . 118 123 Ramming 12 | . . 7 5 . . . . . . . Kinetic 2580 | . 533 826 125 36 464 230 . 18 20 328 Thermal 4567 | . . 459 279 2082 705 . 92 193 201 556 Explosive 3610 | . . . 391 1465 590 1164 . . . . Electromagnetic 1030 | . 101 243 . 291 . . . . 327 68 Impact 501 | . . . . . 56 . 204 . 118 123 Slashing . | . . . . . . . . . . . Piercing . | . . . . . . . . . . . Highest Corruption 1 | . . . . . . . . . . 1 Average Corruption 1 | . . . . . . . . . . 1 Corruption Purged . | . . . . . . . . . . . Corruption Blocked . | . . . . . . . . . . . Overload Shots . | . . . . . . . . . . . Overflow Damage 679 | . . . . 52 306 . 97 . 111 113 Projectiles 15 | . . . . 15 . . . . . . Explosions 287 | . . . . 37 250 . . . . . Melee 377 | . . . . . 56 . 97 . 111 113 Knockbacks 2 | . . . . . . . 1 . . 1 Impact 2 | . . . . . . . 1 . . 1 Kinetic . | . . . . . . . . . . . Secondary . | . . . . . . . . . . . Self-Inflicted Damage 523 | . . 3 . 252 . 228 . . . 40 Shots 14 | . . . . 7 . 5 . . . 2 Rammed 3 | . . 1 2 . . . . . . . Targets Rammed 3 | . . 1 2 . . . . . . . Kicked . | . . . . . . . . . . . Crushed . | . . . . . . . . . . . Highest Temperature 359 | . 108 251 217 279 118 60 359 234 136 315 Average Temperature 84 | . 27 63 63 97 47 28 154 99 45 167 Received Heat Transfer 1491 | . 327 207 111 684 30 9 51 . 72 . Effects 1 | . . . . . . . 1 . . . Short Circuit 1 | . . . . . . . 1 . . . Siege Activations . | . . . . . . . . . . . Robots Corrupted 1 | . . . . . . . . . 1 . Combat Hostiles 1 | . . . . . . . . . 1 . Parts Fried 4 | . . . . . . . 3 . 1 . Impact Corruptions 8 | . . . . . 1 . 2 . 1 4 Robots Melted 4 | . . 1 1 . . . . . . 2 Combat Hostiles 4 | . . 1 1 . . . . . . 2 Parts Melted 19 | . . 3 3 10 . . . . . 3 Heat Transferred 9425 | . . 1295 740 4133 624 . 148 444 324 1717 Parts Sabotaged . | . . . . . . . . . . . Parts Stolen . | . . . . . . . . . . . Parts Stripped . | . . . . . . . . . . . Power Chain Reactions 3 | . . . . 1 . . . . 2 . Missiles Intercepted . | . . . . . . . . . . . Alert | -11 -10 -9 -9 -8 -7 -7 -7 -7 -7 -7 ------- Run | Scr Mat Mat Min Mat Fac Was Fac Low Low Dat Peak Influence 944 | . 234 415 580 944 782 303 405 . . . Initial 397 | . . 58 145 226 397 273 72 . . . Average 395 | . 100 221 433 653 538 208 206 . . . Maximum Alert Level 3 | . 1 2 2 3 3 1 2 . . . Low Security (%) 22 | . 92 39 . . . 38 21 . . . Level 1 33 | . 7 58 39 4 22 61 74 . . . Level 2 31 | . . 2 59 65 53 . 3 . . . Level 3 12 | . . . . 30 24 . . . . . Level 4 . | . . . . . . . . . . . Level 5 . | . . . . . . . . . . . High Security . | . . . . . . . . . . . Max Security . | . . . . . . . . . . . Squads Dispatched 11 | . 2 4 1 1 3 . . . . . Investigation 3 | . 2 1 . . . . . . . . Extermination 1 | . . . . . 1 . . . . . Reinforcement 6 | . . 3 1 . 2 . . . . . Assault 1 | . . . . 1 . . . . . . Garrison . | . . . . . . . . . . . Intercept . | . . . . . . . . . . . Searches Triggered . | . . . . . . . . . . . Construction Impeded 2 | . . . 1 . 1 . . . . . Haulers Reinforced 1 | . . . . . 1 . . . . . Active Scanning Responses . | . . . . . . . . . . . Cargo Convoy Interrupts . | . . . . . . . . . . . Stealth | -11 -10 -9 -9 -8 -7 -7 -7 -7 -7 -7 --------- Run | Scr Mat Mat Min Mat Fac Was Fac Low Low Dat Distress Signals 12 | . 2 2 1 4 2 . 1 . . . Communications Jammed . | . . . . . . . . . . . Distress Signals . | . . . . . . . . . . . Times Spotted 154 | . 20 28 12 50 13 8 10 3 6 4 Peak Tracking Total 7 | . 6 4 3 7 4 4 4 3 6 2 Tactical Retreats 6 | . 1 1 . 3 . 1 . . . . Traps | -11 -10 -9 -9 -8 -7 -7 -7 -7 -7 -7 ------- Run | Scr Mat Mat Min Mat Fac Was Fac Low Low Dat Traps Triggered 4 | . 2 1 . . 1 . . . . . Indirectly . | . . . . . . . . . . . Trap Hack Attempts . | . . . . . . . . . . . Triggered . | . . . . . . . . . . . Disarmed . | . . . . . . . . . . . Reprogrammed . | . . . . . . . . . . . Reused . | . . . . . . . . . . . Traps Extracted . | . . . . . . . . . . . Installed . | . . . . . . . . . . . Triggered . | . . . . . . . . . . . Most Traps Carried 2 | . . . . . . . . 2 2 2 Machines | -11 -10 -9 -9 -8 -7 -7 -7 -7 -7 -7 ---------- Run | Scr Mat Mat Min Mat Fac Was Fac Low Low Dat Machines Disabled 22 | . . 1 1 6 12 . . 1 . 1 Max in Single Turn 12 | . . 1 1 1 12 . . 1 . 1 Machines Sabotaged . | . . . . . . . . . . . Garrisons Compromised . | . . . . . . . . . . . Overloaded Fab Kills . | . . . . . . . . . . . Hacking | -11 -10 -9 -9 -8 -7 -7 -7 -7 -7 -7 --------- Run | Scr Mat Mat Min Mat Fac Was Fac Low Low Dat Machines Accessed 17 | . 4 4 . 3 1 . 1 . . 4 Terminals 11 | . 4 4 . 3 . . . . . . Fabricators 2 | . . . . . 1 . 1 . . . Repair Stations . | . . . . . . . . . . . Recycling Units . | . . . . . . . . . . . Scanalyzers . | . . . . . . . . . . . Garrison Access . | . . . . . . . . . . . Total Hacks 63 | . 8 14 . 6 2 . 3 . . 30 Successful 46 | . 5 6 . 2 2 . 1 . . 30 Failed 17 | . 3 8 . 4 . . 2 . . . Catastrophic 4 | . 2 1 . 1 . . . . . . Database Lockouts . | . . . . . . . . . . . Manual 17 | . 7 10 . . . . . . . . Terminals 28 | . 8 14 . 6 . . . . . . Fabricators 5 | . . . . . 2 . 3 . . . Repair Stations . | . . . . . . . . . . . Recycling Units . | . . . . . . . . . . . Scanalyzers . | . . . . . . . . . . . Garrison Access . | . . . . . . . . . . . Terminal Hacks 43 | . 5 6 . 2 . . . . . 30 Record 11 | . . . . . . . . . . 11 Part Schematic 12 | . . 2 . . . . . . . 10 Robot Schematic 6 | . . . . . . . . . . 6 Robot Analysis 1 | . 1 . . . . . . . . . Prototype ID Bank 3 | . . . . . . . . . . 3 Branch Access Points 2 | . 1 1 . . . . . . . . Locate Traps 2 | . 1 1 . . . . . . . . Transport Status 1 | . 1 . . . . . . . . . Hauler Manifests 3 | . 1 1 . 1 . . . . . . Zone Layout 2 | . . 1 . 1 . . . . . . Fabricator Hacks 3 | . . . . . 2 . 1 . . . Network Status 2 | . . . . . 1 . 1 . . . Build 1 | . . . . . 1 . . . . . Repair Station Hacks . | . . . . . . . . . . . Recycling Unit Hacks . | . . . . . . . . . . . Scanalyzer . | . . . . . . . . . . . Garrison Access Hacks . | . . . . . . . . . . . Unauthorized Hacks . | . . . . . . . . . . . Terminals . | . . . . . . . . . . . Fabricators . | . . . . . . . . . . . Repair Stations . | . . . . . . . . . . . Recycling Units . | . . . . . . . . . . . Scanalyzers . | . . . . . . . . . . . Garrison Access . | . . . . . . . . . . . Data Cores Recovered . | . . . . . . . . . . . Used . | . . . . . . . . . . . Hacking Detections 13 | . 4 4 . 3 1 . 1 . . . Full Trace Events . | . . . . . . . . . . . Feedback Events . | . . . . . . . . . . . Feedback Blocked . | . . . . . . . . . . . Robot Schematics Acquired 6 | . . . . . . . . . . 6 Robots Built . | . . . . . . . . . . . Authchips . | . . . . . . . . . . . Time . | . . . . . . . . . . . Total Robot Build Rating . | . . . . . . . . . . . Part Schematics Acquired 12 | . . 2 . . . . . . . 10 Parts Built 1 | . . . . . 1 . . . . . Authchips . | . . . . . . . . . . . Time 95 | . . . . . 95 . . . . . Total Part Build Rating 5 | . . . . . 5 . . . . . Parts Repaired . | . . . . . . . . . . . Time . | . . . . . . . . . . . Parts Recycled . | . . . . . . . . . . . Recycled Matter . | . . . . . . . . . . . Retrieved Matter . | . . . . . . . . . . . Retrieved Components . | . . . . . . . . . . . Parts Scanalyzed . | . . . . . . . . . . . Part Schematics Acquired . | . . . . . . . . . . . Parts Damaged . | . . . . . . . . . . . Bothacking | -11 -10 -9 -9 -8 -7 -7 -7 -7 -7 -7 ------------ Run | Scr Mat Mat Min Mat Fac Was Fac Low Low Dat Used RIF Installer . | . . . . . . . . . . . Robots Hacked 1 | . . . . . . . . . 1 . Non-combat 1 | . . . . . . . . . 1 . Combat . | . . . . . . . . . . . Robot Hacks Applied 1 | . . . . . . . . . 1 . parse_system 1 | . . . . . . . . . 1 . Relay Couplers Released . | . . . . . . . . . . . Fabnet Peak Effective % . | . . . . . . . . . . . Robots Rewired . | . . . . . . . . . . . Allies Hacked 1 | . . . . . . . . 1 . . Hacks Repelled . | . . . . . . . . . . . Allies | -11 -10 -9 -9 -8 -7 -7 -7 -7 -7 -7 -------- Run | Scr Mat Mat Min Mat Fac Was Fac Low Low Dat Total Allies 19 | . . . . . . 19 . . . . Largest Group 19 | . . . . . . 19 12 9 2 2 Highest-Rated Group 465 | . . . . . . 465 343 261 53 53 Highest-Rated Ally 35 | . . . . . . 35 35 35 27 27 Total Orders . | . . . . . . . . . . . Ally Attacks 137 | . . . . . . 92 35 10 . . Total Damage 5521 | . . . . . . 4175 875 471 . . Kills 26 | . . . . . . 11 11 4 . . Allies Corrupted 1 | . . . . . . . . 1 . . Allies Melted . | . . . . . . . . . . . Intel | -11 -10 -9 -9 -8 -7 -7 -7 -7 -7 -7 ------- Run | Scr Mat Mat Min Mat Fac Was Fac Low Low Dat Robot Analysis Total 1 | . 1 . . . . . . . . . Derelict Logs Recovered 4 | . . . 1 . . . . 1 2 . Drone Launches . | . . . . . . . . . . . Drone Recoveries . | . . . . . . . . . . . Exploration | -11 -10 -9 -9 -8 -7 -7 -7 -7 -7 -7 ------------- Run | Scr Mat Mat Min Mat Fac Was Fac Low Low Dat Turns Passed 7344 | . 531 959 370 1814 738 653 755 591 622 311 Spaces Moved 3982 | 1 299 445 186 889 279 557 386 383 444 113 Core 186 | . . . . . . 186 . . . . Treads 1149 | . . . . 660 255 . 163 62 . 9 Legs 136 | 1 134 . . . . 1 . . . . Wheels 2511 | . 165 445 186 229 24 370 223 321 444 104 Hover . | . . . . . . . . . . . Flight . | . . . . . . . . . . . Fastest Speed 50 | 120 90 135 150 120 130 50 130 130 130 130 Average Speed 148 | 120 119 146 159 160 231 99 177 147 130 140 Slowest Speed 320 | 120 135 150 165 238 238 260 240 240 130 320 Overloaded Moves . | . . . . . . . . . . . Propulsion Burnouts . | . . . . . . . . . . . Robots Hopped . | . . . . . . . . . . . Cave-ins Triggered . | . . . . . . . . . . . Exploration Rate (%) 48 | 2 51 49 39 71 8 96 19 51 64 79 Regions Visited 10 Branch Regions 4 Pre-discovered Areas 2 | . . . 1 . . . . . . 1 Known Exits Taken 5 | . . 1 . 1 . . 1 1 1 . Unknown Exits Taken 3 | 1 1 . 1 . . . . . . . Scrap Searched 7 | . . . 2 . . . . 3 2 . Spaces Dug 10 | . . . . 3 . 1 4 . 2 . Terrain Destroyed 231 | . . . 38 97 45 41 4 . 6 . Melee 7 | . . . . . . 1 4 . 2 . Projectile 15 | . . . . 15 . . . . . . AOE 209 | . . . 38 82 45 40 . . 4 . Terrain Rammed . | . . . . . . . . . . . Walls Destroyed . | . . . . . . . . . . . Machines Disabled . | . . . . . . . . . . . Actions | -11 -10 -9 -9 -8 -7 -7 -7 -7 -7 -7 --------- Run | Scr Mat Mat Min Mat Fac Was Fac Low Low Dat Total 4834 | . 393 621 219 1105 351 642 436 394 472 201 Wait 159 | . 17 22 3 26 12 42 8 . . 29 Move 3973 | . 298 444 185 888 279 556 385 382 443 113 Hop . | . . . . . . . . . . . Pick Up 117 | . 14 33 1 32 11 5 17 2 2 . Fast Attach 41 | . 3 3 . 13 2 13 2 . 3 2 Attach 45 | . 4 12 3 10 5 3 . . 1 7 Detach 4 | . . 1 1 1 . 1 . . . . Swap 70 | . . 8 3 13 12 2 9 2 9 12 Drop 88 | . 8 22 . 28 12 8 5 1 4 . Fire 311 | . 49 75 21 94 17 11 3 6 6 29 Melee 23 | . . . . . 1 1 7 1 4 9 Ram 1 | . . 1 . . . . . . . . Kick . | . . . . . . . . . . . Crush 2 | . . . 2 . . . . . . . Escape Stasis . | . . . . . . . . . . . Rewire . | . . . . . . . . . . . Trap . | . . . . . . . . . . . Miscellaneous . | . . . . . . . . . . . Route ------- -11/Scrapyard -10/Materials (discovered 2 exits: *Mat / *Min) -9/Materials -9/Mines -8/Materials (discovered 3 exits: *Fac x3) -7/Factory -7/Waste -7/Factory (discovered 2 exits: [*Fac] / *Low) -7/Lower Caves -7/Lower Caves (discovered 2 exits: [*Fac] / *Dat) -7/Data Miner (discovered 1 exit: [*Pro]) History --------- Turn | Location | Event 1 | -11/Scrapyard | Discovered new exit (range 0) 1 | -11/Scrapyard | Entered Materials 134 | -10/Materials | Identified exit to Mines 318 | -10/Materials | Build established: Mutant 495 | -10/Materials | Discovered new exit (range 16) 518 | -10/Materials | Core integrity fell below 50% 532 | -10/Materials | Entered another Materials area 532 | -9/Materials | Evolved 2 slots: Propulsion x1, Utility x1 903 | -9/Materials | Identified exit to Mines 1491 | -9/Materials | Entered Mines 1535 | -9/Mines | Met a Derelict bent on vengeance 1540 | -9/Mines | Learned location of Storage (-7) 1653 | -9/Mines | Learned 2 Materials zone layouts 1817 | -9/Mines | Discovered new exit (range 15) 1861 | -9/Mines | Entered Materials 1861 | -8/Materials | Evolved 2 slots: Propulsion x1, Utility x1 1862 | -8/Materials | Identified exit to Factory 1972 | -8/Materials | Destroyed 7 combat bots 2206 | -8/Materials | Discovered exit to Factory (range 11) 2375 | -8/Materials | Destroyed 7 combat bots 2661 | -8/Materials | First assault squad dispatched 3441 | -8/Materials | Discovered exit to Factory (range 8) 3675 | -8/Materials | Entered Factory 3675 | -7/Factory | Evolved 2 slots: Utility x1, Weapon x1 3891 | -7/Factory | Fabricated Imp. Heavy Armor Plating? 4055 | -7/Factory | Build established: Tank 4413 | -7/Factory | Sucked down chute 4413 | -7/Factory | Entered Waste 4497 | -7/Waste | Spotted C-40 Crusher 4524 | -7/Waste | Spotted C-40 Crusher 4529 | -7/Waste | Spotted C-40 Crusher 4537 | -7/Waste | Spotted C-40 Crusher 4575 | -7/Waste | Destroyed C-40 Crusher 4577 | -7/Waste | Crushed by Compactor (1 part destroyed, 1 dropped) 4581 | -7/Waste | Crushed by Compactor (1 part destroyed, 1 dropped) 4581 | -7/Waste | Destroyed C-40 Crusher 4583 | -7/Waste | Crushed by Compactor (1 part destroyed, 2 dropped) 4584 | -7/Waste | Crushed by Compactor (1 part destroyed, 1 dropped) 4587 | -7/Waste | Crushed by Compactor (1 part destroyed) 4597 | -7/Waste | Spotted C-40 Crusher 4618 | -7/Waste | Lost 5 parts (1p2u2w) 4635 | -7/Waste | Spotted C-40 Crusher 4644 | -7/Waste | Warlord forces began an assault 4647 | -7/Waste | Allies destroyed C-40 Crusher 4685 | -7/Waste | Allies destroyed C-40 Crusher 4694 | -7/Waste | Allies destroyed C-40 Crusher 4724 | -7/Waste | Allies destroyed C-40 Crusher 4950 | -7/Waste | Discovered new exit (range 15) 5052 | -7/Waste | Identified exit to Factory 5066 | -7/Waste | Entered Factory 5066 | -7/Factory | Accompanied by 12 allies 5137 | -7/Factory | Discovered new exit (range 11) 5723 | -7/Factory | Discovered new exit (range 5) 5733 | -7/Factory | Identified exit to Lower Caves 5821 | -7/Factory | Entered Lower Caves 5821 | -7/Lower Caves | Accompanied by 9 allies 5924 | -7/Lower Caves | Build established: Mutant 6146 | -7/Lower Caves | Learned 4 Factory zone layouts 6190 | -7/Lower Caves | Acquired the password to a Derelict Tinkerer's latest research 6208 | -7/Lower Caves | Encountered a Warlord checkpoint 6296 | -7/Lower Caves | Caught by Unaware searching for contraband prototypes 6351 | -7/Lower Caves | Discovered new exit (range 12) 6375 | -7/Lower Caves | Identified exit to Lower Caves 6412 | -7/Lower Caves | Entered another Lower Caves area 6412 | -7/Lower Caves | Accompanied by 2 allies 6471 | -7/Lower Caves | Discovered new exit (range 12) 6767 | -7/Lower Caves | Learned Factory stockpile data 6993 | -7/Lower Caves | Discovered new exit (range 7) 7001 | -7/Lower Caves | Identified exit to Data Miner 7008 | -7/Lower Caves | Build established: Skirmisher 7020 | -7/Lower Caves | Found Alien Artifact 7020 | -7/Lower Caves | Identified Core Expander 7020 | -7/Lower Caves | Installed Core Expander, added new Propulsion slot 7034 | -7/Lower Caves | Entered Data Miner 7034 | -7/Data Miner | Accompanied by 2 allies 7034 | -7/Data Miner | Discovered new exit (range 6) 7059 | -7/Data Miner | Met Data Miner 7102 | -7/Data Miner | Learned location of Section 7 (-2) 7102 | -7/Data Miner | Acquired the access code to Warlord's prototype stash 7114 | -7/Data Miner | Received God Mode back door access code from Data Miner 7136 | -7/Data Miner | Data Conduit disabled 7330 | -7/Data Miner | Core integrity fell below 50% 7343 | -7/Data Miner | Core integrity fell below 20% 7345 | -7/Data Miner | Destroyed self with Proton Missile Launcher Last Messages --------------- 07276_ Enhanced Grunt suffers critical hit (Burn). 07283_ Enhanced Grunt critical meltdown. 07283_ Adv. Heat Sink melted. 07283_ Prototype Device melted. 07289_ Acquired Corrupted Prototype Leg. 07289_ Identified Enh. Flexi-carbon Leg. 07289_ Integrated Corrupted Enh. Flexi-carbon Leg (+1). 07289_ Corrupted Enh. Flexi-carbon Leg temporarily disabled. 07293_ Imp. Medium Armor Plating destroyed. 07320_ Med. Treads destroyed. 07324_ Hvy. Beamcaster destroyed. 07330_ Disposable Heat Sink melts away. 07331_ Med. Treads destroyed. 07333_ Enh. Autogun destroyed. 07334_ Enhanced Grunt heat damages Prototype Device. 07335_ Enhanced Grunt heat short circuits Enh. Flexi-carbon Leg. 07337_ Plasma Cannon destroyed. 07337_ Enh. Flexi-carbon Leg destroyed. 07340_ Enhanced Grunt heat short circuits Antimatter Reactor. 07342_ Hvy. Beamcaster destroyed. Map ----- +----------------------------------------------------+ | | | | | | | | | | | | | | | | | | | | | | | | | | | | | | | | | | | | | ?????????????????????????????? | | ?????????????????????????????? | | ?????????????????????????????? | | ?????????????????????????????? | | ?????????????????????????????? | | ????#################????????? | | ???## """"""""""""######???? | | ??## @ """"" " """# ### | | ??# g """"" | | ??# g | | ?## !%= | | ?# ! %!% | | ?## " = | | ??#" """" """""" | | ??#"""""""" """"#### | | ??##""""""" """""###??? | | ???##"""""""" "#####????? | | ????########"## "#????????? | | ???????????#"### "#????????? | | ???????????#"### "#????????? | | ???????????#"## "#????????? | | ????????????"## "#????????? | | ?????????????# "#????????? | | ?????????????### "#????????? | | ???????????????# "##???????? | | ??????????????## ""#???????? | | ???????????#?## ""#???????? | | ?????????"##"#"X ""#???????? | | ?????????"""""" "####????? | | ?????????#""""" X"""""????? | | ?????????###"#"X "##"#????? | | ???????????#?## X""""#????? | +----------------------------------------------------+ Best States ------------- Heat Dissipation 53 Coolant Potential 65 Energy Generation 21 Energy Capacity 325 Matter Stores 300 Matter Capacity 300 Sight Range 16 Robot Scan Range 15 Terrain Scan Density 10 Armor Coverage 825 Resistance: KI 20 Resistance: EM 15 Evasion (%) 55 Targeting Accuracy 8 Recoil Reduction 4 Authchip Count 2 Item Schematics ----------------- Flight Unit | -9/Materials | Hacked Huge Storage Unit | -9/Materials | Hacked Combat Drone Bay | -7/Data Miner | Free Lgt. Regenerative Plating | -7/Data Miner | Free Cld. Aerolev Unit | -7/Data Miner | Free Gravity Neutralizer | -7/Data Miner | Free Prc. Rocket Launcher | -7/Data Miner | Free Antigrav System | -7/Data Miner | Free Adv. Cooling System | -7/Data Miner | Free KE Penetrator | -7/Data Miner | Free Adv. Transmission Jammer | -7/Data Miner | Free Matter Neutralizer | -7/Data Miner | Free Robot Schematics ------------------ E-15 Imp | -7/Data Miner | Free R-10 Processor | -7/Data Miner | Free S-27 Virus | -7/Data Miner | Free Y-54 Guardian | -7/Data Miner | Free G-50 Soldier | -7/Data Miner | Free Y-64 Sentinel | -7/Data Miner | Free Fabricated ------------ Imp. Heavy Armor Plating | x1 | -7/Factory | Preloaded Alien Tech Used ----------------- Core Expander Achievements -------------- None Challenges ------------ None Game ------ Seed FieldQuantumCarapace Manual? 0 Play Time 01:05:17 Cumulative 281.0 hours Start 2022.05.12 @ 15:54:19 End 2022.05.12 @ 17:08:36 Sessions 1 Manual Loads 0 Difficulty Rogue Special Mode None Game No. 85 Rogue 68 Adventurer 17 Explorer 0 Win Type - Total 17 Types 8/0/7/1/0/0/1/0/0 Lore% 79 Gallery% 83 Achievement% 72 Wizard Run 0 Options --------- ASCII 0 Keyboard 0 Movement Arrows Keybinds 0 Fullscreen 1 Font 28/Dina Map View 72x54 Tactical HUD 1 Map Filters NONE Filters NONE Steam 1 RUN: 2061c1e2-7de3-4900-a68a-e53363d52427